fUSD/lending_fUSD_20240818
["ID","MTS","AMOUNT","RATE_DAILY","PERIOD"]
[335183454,1723945831010,253.63023774,9.943e-05,2]
[335183460,1723945832048,-155.25409578,9.988e-05,2]
[335183462,1723945832058,-500.0,9.998e-05,2]
[335183464,1723945832068,-468.3275992,9.999e-05,2]
[335183466,1723945832078,-80.05671566,0.0001,2]
[335183469,1723945832090,-75.0762199,0.0001,2]
[335183471,1723945832099,-500.0,0.00010063,2]
[335183473,1723945832109,-1200.0,0.00010082,2]
[335183475,1723945832117,-500.0,0.00010164,2]
[335183477,1723945832126,-239.65043508,0.00010224,2]
[335183479,1723945832140,-260.34956492,0.00010224,2]
[335183481,1723945832149,-209.01,0.0001027,2]
[335183482,1723945832159,-500.0,0.0001029,2]
[335183483,1723945832168,-1200.0,0.00010294,2]
[335183484,1723945832178,-150.0,0.00010411,2]
[335183486,1723945832188,-300.0,0.00010433,2]
[335183488,1723945832197,-1012.66,0.00010434,2]
[335183490,1723945832207,-150.0,0.00010434,2]
[335183492,1723945832216,-19134.47912997,0.00010435,2]
[335183494,1723945832227,-929.99995,0.00010435,2]
[335183495,1723945832239,-2722.12504729,0.00010435,2]
[335183496,1723945832250,-8779.16347274,0.00010435,2]
[335183497,1723945832260,-257.7544,0.00010435,2]
[335183498,1723945832269,-1000.0,0.00010435,2]
[335183499,1723945832278,-500.0,0.00010456,2]
[335183500,1723945832287,-562.08,0.00010468,2]
[335183501,1723945832296,-163.40901314,0.00010471,2]
[335183502,1723945832306,-198.15192471,0.00010471,2]
[335183503,1723945832315,-794.0,0.00010492,2]
[335183504,1723945832324,-3221.21,0.00010492,2]
[335183505,1723945832334,-1200.0,0.00010535,2]
[335183506,1723945832344,-155.0,0.00010566,2]
[335183507,1723945832353,-155.0,0.00010566,2]
[335183508,1723945832362,-500.0,0.00010586,2]
[335183509,1723945832371,-499.99,0.00010604,2]
[335183510,1723945832381,-900.0,0.00010657,2]
[335183511,1723945832392,-500.0,0.00010661,2]
[335183512,1723945832401,-500.0,0.00010684,2]
[335183513,1723945832410,-500.0,0.00010684,2]
[335183514,1723945832420,-150.7,0.000107,2]
[335183515,1723945832429,-151.3,0.000107,2]
[335183516,1723945832439,-150.0,0.00010725,2]
[335183517,1723945832448,-150.0,0.00010728,2]
[335183518,1723945832457,-150.0,0.00010728,2]
[335183519,1723945832467,-150.0,0.00010728,2]
[335183520,1723945832477,-150.0,0.0001073,2]
[335183521,1723945832486,-150.0,0.0001073,2]
[335183522,1723945832495,-150.0,0.00010733,2]
[335183523,1723945832505,-150.0,0.00010736,2]
[335183524,1723945832514,-150.0,0.00010736,2]
[335183525,1723945832523,-150.0,0.00010738,2]
[335183526,1723945832533,-150.0,0.00010739,2]
[335183527,1723945832542,-150.0,0.00010743,2]
[335183528,1723945832552,-150.0,0.00010748,2]
[335183529,1723945832561,-153.05764618,0.00010749,2]
[335183530,1723945832570,-150.0,0.0001075,2]
[335183531,1723945832580,-150.0,0.00010764,2]
[335183532,1723945832590,-150.0,0.00010765,2]
[335183533,1723945832599,-150.0,0.00010765,2]
[335183534,1723945832609,-150.0,0.00010765,2]
[335183535,1723945832619,-150.0,0.00010765,2]
[335183536,1723945832628,-150.0,0.00010769,2]
[335183537,1723945832638,-150.0,0.00010774,2]
[335183538,1723945832647,-150.0,0.00010776,2]
[335183539,1723945832656,-150.0,0.00010778,2]
[335183540,1723945832665,-150.0,0.00010779,2]
[335183541,1723945832675,-150.0,0.00010787,2]
[335183542,1723945832684,-150.0,0.00010789,2]
[335183543,1723945832693,-150.0,0.00010793,2]
[335183544,1723945832703,-150.0,0.00010797,2]
[335183545,1723945832712,-150.0,0.00010798,2]
[335183546,1723945832721,-705.29228499,0.000108,2]
[335183547,1723945832731,-815.31589721,0.000108,2]
[335183548,1723945832740,-150.0,0.00010804,2]
[335183549,1723945832749,-150.0,0.00010809,2]
[335183550,1723945832759,-150.0,0.00010809,2]
[335183551,1723945832769,-150.0,0.00010812,2]
[335183552,1723945832778,-150.0,0.00010817,2]
[335183553,1723945832787,-150.0,0.00010818,2]
[335183554,1723945832796,-150.0,0.00010819,2]
[335183555,1723945832806,-1200.0,0.00010821,2]
[335183556,1723945832819,-304.52049329,0.00010828,2]
[335183557,1723945832828,-150.0,0.00010828,2]
[335183558,1723945832837,-150.0,0.00010828,2]
[335183559,1723945832847,-334.71931566,0.00010835,2]
[335183560,1723945832857,-150.0,0.00010838,2]
[335183561,1723945832867,-150.0,0.00010839,2]
[335183562,1723945832876,-150.0,0.0001084,2]
[335183563,1723945832887,-150.0,0.00010841,2]
[335183564,1723945832897,-150.0,0.00010845,2]
[335183565,1723945832907,-150.0,0.00010848,2]
[335183566,1723945832916,-150.0,0.00010851,2]
[335183567,1723945832925,-150.0,0.00010854,2]
[335183568,1723945832934,-150.0,0.00010863,2]
[335183569,1723945832944,-150.0,0.00010866,2]
[335183570,1723945832954,-150.0,0.0001087,2]
[335183571,1723945832964,-150.0,0.0001088,2]
[335183572,1723945832973,-493.21232,0.0001088,2]
[335183573,1723945832983,-150.0,0.00010881,2]
[335183574,1723945832992,-150.0,0.00010882,2]
[335183575,1723945833002,-150.0,0.00010887,2]
[335183576,1723945833011,-150.0,0.00010888,2]
[335183577,1723945833021,-150.0,0.00010889,2]
[335183578,1723945833031,-150.0,0.0001089,2]
[335183579,1723945833040,-150.0,0.0001089,2]
[335183580,1723945833049,-1914.9503,0.0001089,2]
[335183581,1723945833059,-2273.9302,0.0001089,2]
[335183582,1723945833068,-150.0,0.00010891,2]
[335183583,1723945833078,-150.0,0.00010892,2]
[335183584,1723945833088,-150.0,0.00010897,2]
[335183585,1723945833097,-171.32818873,0.000109,2]
[335183586,1723945833107,-150.0,0.000109,2]
[335183587,1723945833116,-202.18939564,0.000109,2]
[335183588,1723945833125,-1951.0,0.000109,2]
[335183589,1723945833136,-150.0,0.00010904,2]
[335183590,1723945833145,-150.0,0.00010914,2]
[335183591,1723945833155,-150.0,0.00010917,2]
[335183592,1723945833164,-150.0,0.00010918,2]
[335183593,1723945833174,-150.0,0.00010919,2]
[335183594,1723945833183,-150.0,0.0001092,2]
[335183595,1723945833193,-150.0,0.00010921,2]
[335183596,1723945833203,-150.0,0.00010923,2]
[335183597,1723945833212,-150.0,0.00010924,2]
[335183598,1723945833222,-150.0,0.00010925,2]
[335183599,1723945833232,-150.0,0.00010929,2]
[335183600,1723945833242,-150.0,0.00010929,2]
[335183601,1723945833252,-150.0,0.0001093,2]
[335183602,1723945833261,-150.0,0.00010932,2]
[335183603,1723945833271,-150.0,0.00010933,2]
[335183604,1723945833280,-150.0,0.00010935,2]
[335183605,1723945833289,-150.0,0.00010936,2]
[335183606,1723945833298,-150.0,0.00010939,2]
[335183607,1723945833308,-150.0,0.0001094,2]
[335183608,1723945833318,-150.0,0.0001094,2]
[335183609,1723945833327,-500.0,0.0001094,2]
[335183610,1723945833336,-150.0,0.00010945,2]
[335183611,1723945833345,-150.0,0.00010945,2]
[335183612,1723945833355,-150.0,0.00010946,2]
[335183613,1723945833363,-150.0,0.00010946,2]
[335183614,1723945833373,-150.0,0.00010948,2]
[335183615,1723945833382,-150.0,0.00010949,2]
[335183616,1723945833393,-168.64300694,0.0001095,2]
[335183617,1723945833402,-150.0,0.00010952,2]
[335183618,1723945833412,-150.0,0.00010957,2]
[335183619,1723945833422,-250.0,0.00010959,2]
[335183620,1723945833430,-150.0,0.00010965,2]
[335183621,1723945833440,-150.0,0.00010969,2]
[335183622,1723945833449,-150.0,0.00010969,2]
[335183623,1723945833458,-200.0,0.00010973,2]
[335183624,1723945833467,-937.0,0.00010974,2]
[335183625,1723945833476,-150.0,0.00010976,2]
[335183626,1723945833485,-150.0,0.00010976,2]
[335183627,1723945833495,-150.0,0.0001098,2]
[335183628,1723945833504,-150.0,0.00010983,2]
[335183629,1723945833514,-163.06333232,0.00010986,2]
[335183630,1723945833523,-1543.0,0.00010986,2]
[335183631,1723945833532,-1258.0,0.00010986,2]
[335183632,1723945833541,-622.0,0.00010986,2]
[335183633,1723945833550,-1924.0,0.00010986,2]
[335183634,1723945833559,-1090.355,0.00010986,2]
[335183635,1723945833568,-447.198,0.00010986,2]
[335183636,1723945833577,-552.634,0.00010986,2]
[335183637,1723945833586,-734.484,0.00010986,2]
[335183638,1723945833596,-247.699,0.00010986,2]
[335183639,1723945833605,-1205.0,0.00010986,2]
[335183640,1723945833614,-3726.0,0.00010986,2]
[335183641,1723945833623,-5845.0,0.00010986,2]
[335183642,1723945833632,-1673.0,0.00010986,2]
[335183643,1723945833643,-150.0,0.00010988,2]
[335183644,1723945833652,-500.0,0.00010989,2]
[335183645,1723945833662,-500.0,0.00010989,2]
[335183646,1723945833671,-533.17676606,0.00010989,2]
[335183647,1723945833680,-500.0,0.00010989,2]
[335183648,1723945833689,-500.0,0.00010989,2]
[335183649,1723945833699,-500.0,0.00010989,2]
[335183650,1723945833708,-500.0,0.00010989,2]
[335183651,1723945833716,-500.0,0.00010989,2]
[335183652,1723945833725,-375.4872908,0.00010989,2]
[335183653,1723945833734,-500.0,0.00010989,2]
[335183654,1723945833743,-500.0,0.00010989,2]
[335183655,1723945833753,-500.0,0.00010989,2]
[335183656,1723945833762,-184.55613683,0.00010989,2]
[335183657,1723945833771,-161.79450171,0.00010989,2]
[335183658,1723945833781,-366.61583945,0.00010989,2]
[335183659,1723945833962,-309.20835045,0.00010989,2]
[335183660,1723945833972,-500.0,0.00010989,2]
[335183661,1723945833982,-430.10695966,0.00010989,2]
[335183662,1723945833992,-500.0,0.00010989,2]
[335183663,1723945834003,-186.70907177,0.00010989,2]
[335183664,1723945834013,-243.49060239,0.00010989,2]
[335183665,1723945834022,-337.49507021,0.00010989,2]
[335183666,1723945834031,-500.0,0.00010989,2]
[335183667,1723945834041,-209.07682702,0.00010989,2]
[335183668,1723945834050,-500.0,0.00010989,2]
[335183669,1723945834059,-500.0,0.00010989,2]
[335183670,1723945834068,-227.70610825,0.00010989,2]
[335183671,1723945834077,-500.0,0.00010989,2]
[335183672,1723945834086,-363.80941973,0.00010989,2]
[335183673,1723945834096,-162.52711759,0.00010989,2]
[335183674,1723945834105,-165.07187549,0.00010989,2]
[335183675,1723945834114,-500.0,0.00010989,2]
[335183676,1723945834123,-500.0,0.00010989,2]
[335183677,1723945834133,-500.0,0.00010989,2]
[335183678,1723945834145,-284.16269031,0.00010989,2]
[335183679,1723945834158,-316.02292893,0.00010989,2]
[335183680,1723945834167,-325.01844181,0.00010989,2]
[335183681,1723945834177,-151.44004382,0.00010989,2]
[335183682,1723945834186,-211896.6747784,0.0001099,2]
[335183683,1723945834208,-1679.06194262,0.0001099,2]
[335183684,1723945834219,-9335.58180308,0.0001099,2]
[335183685,1723945834230,-1306.0,0.0001099,2]
[335183686,1723945834241,-3586.11267,0.0001099,2]
[335183687,1723945834253,-1215.07590594,0.0001099,2]
[335183688,1723945834263,-2842.85171923,0.0001099,2]
[335183689,1723945834274,-334.17,0.0001099,2]
[335183690,1723945834284,-408127.9300441,0.0001099,2]
[335183691,1723945834294,-30164.96345198,0.0001099,3]
[335183692,1723945834307,-557.07764247,0.0001099,3]
[335183693,1723945834322,-300.0,0.0001099,3]
[335183696,1723945838109,-150.0,0.00010727,2]
[335183697,1723945838118,-150.0,0.00010742,2]
[335183698,1723945838127,-150.0,0.00010744,2]
[335183699,1723945838137,-150.0,0.00010744,2]
[335183700,1723945838152,-150.0,0.00010745,2]
[335183701,1723945838161,-150.0,0.00010747,2]
[335183702,1723945838171,-150.0,0.00010747,2]
[335183703,1723945838180,-150.0,0.00010748,2]
[335183704,1723945838189,-150.0,0.00010749,2]
[335183705,1723945838199,-145.67112458,0.00010756,2]
[335183706,1723945838210,-4.32887542,0.00010756,2]
[335183707,1723945838219,-150.0,0.00010759,2]
[335183708,1723945838228,-150.0,0.00010764,2]
[335183709,1723945838237,-150.0,0.00010766,2]
[335183710,1723945838246,-150.0,0.00010767,2]
[335183711,1723945838255,-150.0,0.00010768,2]
[335183712,1723945838264,-150.0,0.00010769,2]
[335183713,1723945838274,-150.0,0.00010777,2]
[335183714,1723945838283,-150.0,0.00010784,2]
[335183715,1723945838292,-150.0,0.00010787,2]
[335183716,1723945838302,-150.0,0.00010789,2]
[335183717,1723945838312,-101.65112458,0.00010794,2]
[335183721,1723945838897,-48.34887542,0.00010794,2]
[335183722,1723945838907,-150.0,0.00010795,2]
[335183723,1723945838917,-150.0,0.00010796,2]
[335183724,1723945838926,-150.0,0.00010797,2]
[335183725,1723945838935,-150.0,0.00010803,2]
[335183726,1723945838944,-77.94252638,0.0001081,2]
[335183727,1723945838983,-150.0,0.00010767,2]
[335183728,1723945838991,-72.05747362,0.0001081,2]
[335183729,1723945839000,-150.0,0.00010816,2]
[335183730,1723945839009,-150.0,0.00010816,2]
[335183731,1723945839018,-150.0,0.0001082,2]
[335183732,1723945839028,-150.0,0.00010821,2]
[335183733,1723945839039,-150.0,0.00010826,2]
[335183734,1723945839048,-150.0,0.00010828,2]
[335183735,1723945839058,-150.0,0.00010833,2]
[335183736,1723945839067,-150.0,0.00010835,2]
[335183737,1723945839075,-150.0,0.00010835,2]
[335183738,1723945839084,-150.0,0.00010837,2]
[335183739,1723945839094,-150.0,0.00010841,2]
[335183740,1723945839103,-150.0,0.00010842,2]
[335183741,1723945839112,-150.0,0.00010843,2]
[335183742,1723945839121,-150.0,0.00010845,2]
[335183743,1723945839131,-150.0,0.00010847,2]
[335183744,1723945839139,-150.0,0.00010849,2]
[335183745,1723945839148,-150.0,0.00010852,2]
[335183746,1723945839157,-150.0,0.00010855,2]
[335183747,1723945839166,-150.0,0.0001086,2]
[335183748,1723945839177,-150.0,0.00010862,2]
[335183749,1723945839186,-150.0,0.00010864,2]
[335183750,1723945839196,-150.0,0.00010865,2]
[335183751,1723945839206,-150.0,0.00010872,2]
[335183752,1723945839216,-150.0,0.00010879,2]
[335183753,1723945839226,-150.0,0.0001088,2]
[335183754,1723945839237,-150.0,0.00010884,2]
[335183755,1723945839246,-150.0,0.00010889,2]
[335183756,1723945839255,-150.0,0.00010893,2]
[335183757,1723945839263,-150.0,0.00010897,2]
[335183758,1723945839272,-150.0,0.00010898,2]
[335183759,1723945839281,-150.0,0.000109,2]
[335183760,1723945839290,-150.0,0.00010906,2]
[335183761,1723945839300,-150.0,0.00010909,2]
[335183762,1723945839309,-150.0,0.00010911,2]
[335183763,1723945839319,-150.0,0.00010912,2]
[335183764,1723945839329,-150.0,0.00010914,2]
[335183765,1723945839339,-150.0,0.00010914,2]
[335183766,1723945839349,-150.0,0.00010915,2]
[335183767,1723945839359,-150.0,0.00010916,2]
[335183768,1723945839367,-77.01370983,0.00010916,2]
[335183769,1723945839379,-72.98629017,0.00010916,2]
[335183770,1723945839388,-150.0,0.00010917,2]
[335183771,1723945839397,-150.0,0.00010918,2]
[335183772,1723945839406,-150.0,0.0001092,2]
[335183773,1723945839415,-150.0,0.00010921,2]
[335183774,1723945839423,-39.44596574,0.00010922,2]
[335183775,1723945839434,-110.55403426,0.00010922,2]
[335183776,1723945839443,-150.0,0.00010926,2]
[335183777,1723945839452,-150.0,0.00010929,2]
[335183778,1723945839461,-150.0,0.0001093,2]
[335183779,1723945839469,-150.0,0.00010931,2]
[335183780,1723945839478,-150.0,0.00010931,2]
[335183781,1723945839488,-150.0,0.00010931,2]
[335183782,1723945839497,-150.0,0.00010942,2]
[335183783,1723945839506,-150.0,0.00010944,2]
[335183784,1723945839515,-150.0,0.00010946,2]
[335183785,1723945839524,-150.0,0.00010949,2]
[335183786,1723945839533,-150.0,0.0001095,2]
[335183787,1723945839542,-150.0,0.00010951,2]
[335183788,1723945839552,-150.0,0.00010952,2]
[335183789,1723945839561,-150.0,0.00010955,2]
[335183790,1723945839570,-145.87709905,0.00010961,2]
[335183791,1723945839609,-150.0,0.00010748,2]
[335183792,1723945839618,-150.0,0.00010938,2]
[335183793,1723945839627,-150.0,0.00010939,2]
[335183794,1723945839637,-4.12290095,0.00010961,2]
[335183795,1723945839651,-150.0,0.00010961,2]
[335183796,1723945839660,-150.0,0.00010962,2]
[335183797,1723945839669,-150.0,0.00010964,2]
[335183798,1723945839678,-150.0,0.00010967,2]
[335183799,1723945839688,-150.0,0.00010967,2]
[335183800,1723945839698,-150.0,0.00010973,2]
[335183801,1723945839707,-150.0,0.00010973,2]
[335183802,1723945839717,-150.0,0.00010976,2]
[335183803,1723945839727,-150.0,0.00010977,2]
[335183804,1723945839737,-150.0,0.00010978,2]
[335183805,1723945839747,-150.0,0.00010979,2]
[335183806,1723945839758,-150.0,0.00010981,2]
[335183807,1723945839769,-150.0,0.00010983,2]
[335183808,1723945839778,-150.0,0.00010983,2]
[335183809,1723945839789,-1078.902,0.00010986,2]
[335183810,1723945839799,-1803.25055522,0.0001099,3]
[335183811,1723945839819,-2756.36521699,0.0001099,3]
[335183812,1723945839832,-2041.0,0.0001099,3]
[335183813,1723945840171,-150.0,0.00010734,2]
[335183814,1723945840181,-150.0,0.00010747,2]
[335183815,1723945840191,-3.80060881,0.00010761,2]
[335183816,1723945840202,-146.19939119,0.00010761,2]
[335183817,1723945840211,-150.0,0.00010763,2]
[335183818,1723945840221,-150.0,0.00010767,2]
[335183819,1723945840230,-150.0,0.00010772,2]
[335183820,1723945840240,-150.0,0.00010773,2]
[335183821,1723945840249,-150.0,0.00010774,2]
[335183822,1723945840258,-150.0,0.00010799,2]
[335183823,1723945840267,-150.0,0.00010803,2]
[335183824,1723945840277,-150.0,0.00010812,2]
[335183825,1723945840286,-150.0,0.00010812,2]
[335183826,1723945840295,-150.0,0.00010815,2]
[335183827,1723945840305,-150.0,0.00010818,2]
[335183828,1723945840314,-150.0,0.00010827,2]
[335183829,1723945840323,-150.0,0.00010835,2]
[335183830,1723945840333,-150.0,0.00010837,2]
[335183831,1723945840342,-150.0,0.00010849,2]
[335183832,1723945840352,-150.0,0.00010869,2]
[335183833,1723945840362,-150.0,0.00010873,2]
[335183834,1723945840373,-150.0,0.00010874,2]
[335183835,1723945840383,-150.0,0.00010875,2]
[335183836,1723945840393,-150.0,0.00010889,2]
[335183837,1723945840402,-150.0,0.00010893,2]
[335183838,1723945840411,-150.0,0.00010904,2]
[335183839,1723945840423,-150.0,0.00010907,2]
[335183840,1723945840432,-150.0,0.00010918,2]
[335183841,1723945840443,-150.0,0.0001092,2]
[335183842,1723945840454,-150.0,0.00010929,2]
[335183843,1723945840465,-150.0,0.00010929,2]
[335183844,1723945840475,-150.0,0.00010933,2]
[335183845,1723945840486,-150.0,0.00010939,2]
[335183846,1723945840495,-150.0,0.00010939,2]
[335183847,1723945840504,-150.0,0.00010961,2]
[335183848,1723945840513,-150.0,0.00010964,2]
[335183849,1723945840523,-150.0,0.00010965,2]
[335183850,1723945840532,-150.0,0.00010975,2]
[335183851,1723945840544,-150.0,0.00010978,2]
[335183852,1723945840554,-150.0,0.00010978,2]
[335183853,1723945840564,-150.0,0.00010984,2]
[335183854,1723945840575,-2981.4465572,0.0001099,3]
[335183875,1723945840902,-1608.91586877,0.0001099,3]
[335183876,1723945840914,-16337.5743684,0.0001099,3]
[335183877,1723945840956,-150.0,0.00010741,2]
[335183878,1723945840966,-150.0,0.0001076,2]
[335183879,1723945840976,-150.0,0.00010805,2]
[335183880,1723945840985,-12.7030002,0.00010911,2]
[335183881,1723945841027,-150.0,0.00010817,2]
[335183882,1723945841037,-150.0,0.00010818,2]
[335183883,1723945841046,-150.0,0.00010863,2]
[335183884,1723945841056,-46.77599432,0.00010899,2]
[335183885,1723945841068,-103.22400568,0.00010899,2]
[335183886,1723945841078,-137.2969998,0.00010911,2]
[335183887,1723945841088,-150.0,0.00010931,2]
[335183888,1723945841098,-150.0,0.00010946,2]
[335183890,1723945841108,-150.0,0.00010982,2]
[335183891,1723945841117,-8690.47585105,0.0001099,3]
[335183895,1723945841151,-150.0,0.00010741,2]
[335183897,1723945841160,-150.0,0.00010798,2]
[335183899,1723945841171,-74.07477111,0.00010798,2]
[335183963,1723945843316,-150.0,0.00010726,2]
[335183964,1723945843325,-150.0,0.0001073,2]
[335183965,1723945843337,-150.0,0.00010731,2]
[335183966,1723945843347,-150.0,0.00010732,2]
[335183967,1723945843356,-150.0,0.00010733,2]
[335183968,1723945843366,-150.0,0.00010733,2]
[335183969,1723945843375,-150.0,0.00010736,2]
[335183970,1723945843387,-150.0,0.00010739,2]
[335183971,1723945843398,-150.0,0.00010739,2]
[335183972,1723945843407,-83.76304378,0.0001074,2]
[335183973,1723945843419,-66.23695622,0.0001074,2]
[335183974,1723945843429,-150.0,0.00010746,2]
[335183975,1723945843439,-150.0,0.00010748,2]
[335183976,1723945843448,-142.11304478,0.00010749,2]
[335183981,1723945844420,-7.88695522,0.00010749,2]
[335183982,1723945844429,-150.0,0.00010761,2]
[335183983,1723945844439,-150.0,0.00010776,2]
[335183984,1723945844448,-150.0,0.00010778,2]
[335183985,1723945844457,-150.0,0.0001078,2]
[335183986,1723945844466,-150.0,0.00010784,2]
[335183987,1723945844475,-150.0,0.00010786,2]
[335183988,1723945844484,-150.0,0.00010791,2]
[335183989,1723945844493,-150.0,0.00010792,2]
[335183990,1723945844502,-9.61979541,0.00010792,2]
[335183991,1723945844514,-140.38020459,0.00010792,2]
[335183992,1723945844523,-75.92522889,0.00010798,2]
[335183993,1723945844533,-150.0,0.00010799,2]
[335183994,1723945844543,-150.0,0.00010803,2]
[335183995,1723945844554,-150.0,0.0001081,2]
[335183996,1723945844563,-150.0,0.00010821,2]
[335183997,1723945844572,-150.0,0.00010823,2]
[335183998,1723945844581,-150.0,0.00010824,2]
[335183999,1723945844590,-150.0,0.00010826,2]
[335184000,1723945844599,-150.0,0.00010836,2]
[335184001,1723945844608,-150.0,0.0001084,2]
[335184002,1723945844617,-150.0,0.00010845,2]
[335184003,1723945844626,-150.0,0.00010847,2]
[335184004,1723945844635,-150.0,0.00010855,2]
[335184005,1723945844645,-150.0,0.00010855,2]
[335184006,1723945844655,-150.0,0.00010858,2]
[335184007,1723945844663,-150.0,0.00010866,2]
[335184008,1723945844672,-150.0,0.00010867,2]
[335184009,1723945844681,-150.0,0.00010868,2]
[335184010,1723945844690,-150.0,0.0001087,2]
[335184011,1723945844699,-150.0,0.00010873,2]
[335184012,1723945844708,-150.0,0.00010886,2]
[335184013,1723945844717,-150.0,0.00010889,2]
[335184014,1723945844726,-150.0,0.00010891,2]
[335184015,1723945844735,-150.0,0.00010895,2]
[335184016,1723945844744,-150.0,0.00010901,2]
[335184017,1723945844753,-150.0,0.00010902,2]
[335184018,1723945844762,-150.0,0.00010903,2]
[335184019,1723945844771,-150.0,0.00010905,2]
[335184020,1723945844781,-150.0,0.00010905,2]
[335184021,1723945844791,-150.0,0.00010913,2]
[335184022,1723945844803,-150.0,0.00010919,2]
[335184023,1723945844815,-150.0,0.00010921,2]
[335184024,1723945844825,-150.0,0.00010926,2]
[335184025,1723945844836,-150.0,0.00010927,2]
[335184026,1723945844847,-150.0,0.00010928,2]
[335184027,1723945844858,-150.0,0.00010929,2]
[335184028,1723945844867,-150.0,0.00010935,2]
[335184029,1723945844877,-150.0,0.00010942,2]
[335184030,1723945844890,-150.0,0.00010942,2]
[335184031,1723945844900,-150.0,0.0001096,2]
[335184032,1723945844911,-150.0,0.00010961,2]
[335184033,1723945844920,-150.0,0.00010965,2]
[335184034,1723945844930,-150.0,0.00010967,2]
[335184035,1723945844940,-150.0,0.00010969,2]
[335184036,1723945844949,-150.0,0.0001097,2]
[335184037,1723945844959,-150.0,0.00010973,2]
[335184038,1723945844968,-150.0,0.00010974,2]
[335184039,1723945844978,-150.0,0.00010975,2]
[335184040,1723945844988,-150.0,0.00010979,2]
[335184041,1723945844997,-150.0,0.00010981,2]
[335184042,1723945845006,-150.0,0.00010985,2]
[335184043,1723945845016,-150.0,0.00010986,2]
[335184044,1723945845025,-150.0,0.00010986,2]
[335184045,1723945845034,-150.0,0.00010987,2]
[335184046,1723945845043,-150.0,0.00010988,2]
[335184047,1723945845053,-53395.6419838,0.0001099,3]
[335184048,1723945845062,-793.20883096,0.0001099,2]
[335184049,1723945845071,-162.81127159,0.0001099,2]
[335184050,1723945845080,-1050.97286875,0.0001099,2]
[335184051,1723945845090,-170.82093488,0.0001099,2]
[335184052,1723945845100,-150.0,0.00010992,2]
[335184053,1723945845110,-150.0,0.00010992,2]
[335184054,1723945845119,-150.0,0.00010995,2]
[335184055,1723945845130,-150.0,0.00010996,2]
[335184056,1723945845139,-150.0,0.00010997,2]
[335184057,1723945845149,-10607.9255036,0.00010998,2]
[335184058,1723945845159,-1725.7122862,0.00010998,2]
[335184059,1723945845168,-150.0,0.00010998,2]
[335184060,1723945845177,-763.2,0.00010998,2]
[335184061,1723945845186,-697.19439794,0.00010999,2]
[335184062,1723945845195,-418.19415471,0.00010999,2]
[335184063,1723945845204,-500.0,0.00010999,2]
[335184064,1723945845213,-500.0,0.00010999,2]
[335184065,1723945845223,-500.0,0.00010999,2]
[335184066,1723945845231,-500.0,0.00010999,2]
[335184067,1723945845240,-500.0,0.00010999,2]
[335184068,1723945845250,-500.0,0.00010999,2]
[335184069,1723945845259,-500.0,0.00010999,2]
[335184070,1723945845268,-500.0,0.00010999,2]
[335184071,1723945845277,-500.0,0.00010999,2]
[335184072,1723945845286,-500.0,0.00010999,2]